Workbook

Sheet Readme
A5: Created on Thu Oct 04 2012
A7: author: Janwillem van Dijk
A8: email: jwe.van.dijk@xs4all.nl
I9: 1 | J9: Public Sub QuickSort(vArray As Variant, inLow As Integer, inHigh As Integer)
A10: Calculate uncertainty in dose measurement using statistical sampling, | I10: =1+I9 -> 2
A11: the Monte Carlo method (JCGM 101:2008) | I11: =1+I10 -> 3 | J11: Dim vPivot As Variant
I12: 4 | J12: Dim vSwap As Variant
A13: The dose measurement is implemented as a two stage measurement, see e.g. | I13: 5 | J13: Dim lLow As Integer
A14: Introduction to the GUM JCGM 101:2009, section 6.8: | I14: 6 | J14: Dim lHigh As Integer
A15: a) The detector in the dosemeter is the primary measurement device | I15: 7
A16: that will generate a signal x_det wen read | I16: 8 | J16: lLow = inLow
A17: b) The reader that will generate counts dependant on x_det, f_Rd and | I17: 9 | J17: lHigh = inHigh
A18: the blank signal z. | I18: 10
A19: Steps: | I19: 11 | J19: vPivot = vArray((inLow + inHigh) / 2)
A20: 1) Define input quatities and uncertainties therein. | I20: 12
A21: 2) Calculate M random samples of the signal a detector would generate | I21: 13 | J21: Do While lLow <= lHigh
A22: given a set op input quantities and the uncertainties therein. | I22: 14
A23: 3) Calculate the dose using the signal samples and expectation values | I23: 15 | J23: Do While vArray(lLow) < vPivot And lLow < inHigh
A24: for the other input quantities. | I24: 16 | J24: lLow = lLow + 1
A25: 4) Perform statistical analysis. | I25: 17 | J25: Loop
I26: 18
A27: The sheet needs the macro subroutine SortArray to sort the measurand | I27: 19 | J27: Do While (vPivot < vArray(lHigh)) And (lHigh > inLow)
A28: Apart from sorting this macro also calculates the statistics for improved performance | I28: 20 | J28: lHigh = lHigh - 1
I29: 21 | J29: Loop
I30: 22
I31: 23 | J31: If (lLow <= lHigh) Then
I32: 24 | J32: vSwap = vArray(lLow)
I33: 25 | J33: vArray(lLow) = vArray(lHigh)
I34: 26 | J34: vArray(lHigh) = vSwap
I35: 27 | J35: lLow = lLow + 1
I36: 28 | J36: lHigh = lHigh - 1
I37: 29 | J37: End If
I38: 30
I39: 31 | J39: Loop
I40: 32
I41: 33 | J41: If (inLow < lHigh) Then QuickSort vArray, inLow, lHigh
I42: 34 | J42: If (lLow < inHigh) Then QuickSort vArray, lLow, inHigh
I43: 35
I44: 36 | J44: End Sub
I45: 37
I46: 38 | J46: Function SortArray(a As Variant) As Variant
I47: 39 | J47: Dim n0 As Integer, n As Integer
I48: 40 | J48: Dim i As Integer
I49: 41 | J49: Dim ai As Double
I50: 42 | J50: Dim k As Integer, m As Integer
I51: 43 | J51: Dim sum As Double, ssum As Double
I52: 44 | J52: Dim sumB As Double, ssumB As Double
I53: 45 | J53: Dim avg As Double, stdev As Double
I54: 46 | J54: Dim avgB As Double, stdevB As Double
I55: 47
I56: 48 | J56: If TypeName(a) = "Range" Then a = a.Value2
I57: 49 | J57: n0 = LBound(a)
I58: 50 | J58: n = UBound(a)
I59: 51 | J59: Dim b() As Variant
I60: 52 | J60: ReDim b(n0 To n + 8)
I61: 53
I62: 54 | J62: '8 elements space for statistics at the bottom
I63: 55 | J63: For i = n + 1 To n + 8
I64: 56 | J64: b(i) = 1000000000#
I65: 57 | J65: Next i
I66: 58
I67: 59 | J67: k = 0
I68: 60 | J68: For i = n0 To n
I69: 61 | J69: ai = a(i, 1)
I70: 62 | J70: b(i) = ai
I71: 63 | J71: If ai >= 0 Then
I72: 64 | J72: sumB = sumB + ai
I73: 65 | J73: ssumB = ssumB + ai * ai
I74: 66 | J74: k = k + 1
I75: =1+I74 -> 67 | J75: Else
I76: 68 | J76: sum = sum + ai
I77: 69 | J77: ssum = ssum + ai * ai
I78: 70 | J78: End If
I79: 71 | J79: Next i
I80: 72 | J80: sum = sum + sumB
I81: 73 | J81: ssum = ssum + ssumB
I82: 74
I83: 75 | J83: m = n - n0 + 1
I84: 76 | J84: avg = sum / m
I85: 77 | J85: avgB = sumB / k
I86: 78 | J86: stdev = Sqr((ssum - sum * sum / m) / (m - 1))
I87: 79 | J87: stdevB = Sqr((ssumB - sumB * sumB / k) / (k - 1))
I88: 80
I89: 81 | J89: Call QuickSort(b, n0, n)
I90: 82
I91: 83 | J91: 'store statistics in 8 extra array elements
I92: 84 | J92: i = n0
I93: 85 | J93: Do While (b(i) < 0) And (i < n)
I94: 86 | J94: i = i + 1
I95: 87 | J95: Loop
I96: 88 | J96: m = n - i + 1
I97: 89 | J97: b(n + 1) = avg
I98: 90 | J98: b(n + 2) = stdev
I99: 91 | J99: b(n + 3) = avgB
I100: 92 | J100: b(n + 4) = stdevB
I101: 93 | J101: 'JCGM 101 7.7
I102: 94 | J102: b(n + 5) = b(Int(n * 0.025 + 0.5))
I103: 95 | J103: b(n + 6) = b(Int(n * 0.975 + 0.5))
I104: 96 | J104: b(n + 7) = b(i + Int(m * 0.025 + 0.5))
I105: 97 | J105: b(n + 8) = b(i + Int(m * 0.975 + 0.5))
I106: 98
I107: 99 | J107: SortArray = b
I108: 100
I109: 101 | J109: End Function

Sheet MonteCarlo
A1: Monte Carlo uncertainty evaluation of TNO C-detector, LiF:Mg,Ti + 1mm Al
I2: Bayesian
A3: Htrue | B3: 1000 | C3: μSv | F3: Hmcm | G3: =K15 -> 1001.863289 | H3: μSv | I3: =L15 -> 1001.863289 | J3: μSv
A4: Hnat | B4: 100 | C4: μSv | F4: stdev | G4: =K16 -> 164.9410323 | H4: =IF(B3>1,G4/G3,"-") -> 0.1646342711 | I4: =L16 -> 164.9410323 | J4: =I4/I3 -> 0.1646342711 | P4: ="u=" & FIXED(I4,0)&" uSv" -> u=165 uSv
G6: Low 95% | H6: =N15 -> 689.5204865 | I6: =O15 -> 690.6993549 | J6: μSv
A7: N | B7: =COUNT(A20:A32010) -> 10000 | G7: High 95% | H7: =N16 -> 1335.771853 | I7: =O16 -> 1336.275528 | J7: μSv
A9: fE,a | B9: min | D9: 0.39275
B10: max | D10: 1.257
A11: uBg,rel | B11: 0.1 | L11: Count | M11: 10000
L12: First >0 | M12: =IF(L20<0,MATCH(0,L20:L10019),0) -> 0
C13: Detector | G13: Reader | J13: Dose (μSv)
B14: Hnat | C14: fBg | D14: fE,a | E14: fDet | F14: xblank | G14: freader | H14: x | I14: ux,rel | K14: Hocc | N14: 95% coverage
A15: mean | B15: =B4 -> 100 | C15: 1 | D15: 1 | E15: 1 | F15: 200 | G15: 50 | H15: μSv | I15: 1 | K15: =AVERAGE(K20:K10019) -> 1001.863289 | L15: =L10022 -> 1001.863289 | M15: Low | N15: =L10024 -> 689.5204865 | O15: =L10026 -> 690.6993549
A16: stdev | B16: =MAX(B11*B15,0.1) -> 10 | C16: 0.05 | D16: =(D10-D9)/6 -> 0.1440416667 | E16: 0.05 | F16: 10 | G16: 2.5 | H16: μSv | I16: 0.02 | K16: =STDEV(K20:K10019) -> 164.9410323 | L16: =L10023 -> 164.9410323 | M16: High | N16: =L10025 -> 1335.771853 | O16: =L10027 -> 1336.275528
O18: Bayesian
B19: Natural | C19: Bg resp, | D19: Response | E19: Detector | F19: Blank | G19: Sensitivity | H19: Signal | I19: Signal | J19: Hgross | K19: Hocc | L19: Sorted | N19: Frequency | O19: Frequency
A20: =0 -> 0 | B20: =NORMINV(RAND(),B$15, B$16) -> 86.18516774 | C20: =NORMINV(RAND(),C$15, C$16) -> 1.031342748 | D20: 1.20513145 | E20: 1.060070746 | F20: =NORMINV(RAND(),F$15, F$16) -> 202.3986312 | G20: 44.61588088 | H20: =$B$3*D20*E20*G20 + B20*C20*G20+F20 -> 61166.03097 | I20: =H20*NORMINV(RAND(),I$15, I$16) -> 58820.31441 | J20: =(I20-$F$15)/($D$15*$E$15*$G$15) -> 1172.406288 | K20: =J20-$D$15*$B$15/$C$15 -> 1072.406288 | L20: =TRANSPOSE(SORTARRAY(K20:K10019)) -> 430.1614761 | M20: =$K$15-4*$K$16 -> 342.0991595 | N20: =FREQUENCY(K20:K10019,M20:M39) -> 0 | O20: =FREQUENCY(OFFSET(L20,M12,0,M11-M12,1),M20:M39) -> 0 | P20: =_xlfn.NORM.DIST(M20,$B$3,$G$4,FALSE)*$B$7*($M$21-$M$20) -> 0.560029447
A21: =1+A20 -> 1 | B21: 119.2969467 | C21: 1.048688844 | D21: 0.9205701369 | E21: 0.9563284827 | F21: 213.3268386 | G21: 52.13153045 | H21: =$B$3*D21*E21*G21 + B21*C21*G21+F21 -> 52630.16374 | I21: =H21*NORMINV(RAND(),I$15, I$16) -> 50717.60128 | J21: =(I21-$F$15)/($E$15*$G$15) -> 1010.352026 | K21: =J21-$D$15*$B$15/$C$15 -> 910.3520257 | L21: 435.5600062 | M21: =M20+$K$16/2.5 -> 408.0755725 | N21: 0 | O21: 0 | P21: =_xlfn.NORM.DIST(M21,$B$3,$G$4,FALSE)*$B$7*($M$21-$M$20) -> 2.549036408
A22: =1+A21 -> 2 | B22: 102.0861061 | C22: 0.9157364873 | D22: 0.8743958668 | E22: 1.003674221 | F22: 189.4887849 | G22: 49.62918827 | H22: 48384.02439 | I22: =H22*NORMINV(RAND(),I$15, I$16) -> 48418.24124 | J22: 964.3648248 | K22: 864.3648248 | L22: 467.4089078 | M22: 474.0519854 | N22: 3 | O22: 3 | P22: 9.886762387
A23: 3 | B23: 112.2597496 | C23: 0.9893072936 | D23: 1.033721295 | E23: 1.023490823 | F23: 190.9409503 | G23: 50.36326076 | H23: 59068.79834 | I23: 57367.28934 | J23: 1143.345787 | K23: 1043.345787 | L23: 497.8411748 | M23: 540.0283983 | N23: 10 | O23: 10 | P23: 32.67721516
A24: 4 | B24: 102.5805556 | C24: 0.9636298478 | D24: 0.9708134726 | E24: 1.032289339 | F24: 188.5124204 | G24: 53.27217633 | H24: 58841.71573 | I24: 58984.26621 | J24: 1175.685324 | K24: 1075.685324 | L24: 500.758497 | M24: 606.0048113 | N24: 34 | O24: 34 | P24: 92.03411947
A25: 5 | B25: 72.61903895 | C25: 1.126655317 | D25: 0.8785074063 | E25: 1.053496127 | F25: 187.3195534 | G25: 52.81648015 | H25: 53390.45734 | I25: 53534.55704 | J25: 1066.691141 | K25: 966.6911408 | L25: 504.3175568 | M25: 671.9812242 | N25: 130 | O25: 130 | P25: 220.8846663
A26: 6 | B26: 88.70498594 | C26: 0.9930609844 | D26: 0.9816332171 | E26: 1.043657571 | F26: 188.2770012 | G26: 49.49338394 | H26: 55253.54688 | I26: 54855.86327 | J26: 1093.117265 | K26: 993.1172655 | L26: 505.8590926 | M26: 737.9576371 | N26: 328 | O26: 328 | P26: 451.7468762
A27: 7 | B27: 121.5007647 | C27: 1.083664786 | D27: 1.15367354 | E27: 1.040229132 | F27: 197.111887 | G27: 49.73554438 | H27: 66432.46915 | I27: 68485.2102 | J27: 1365.704204 | K27: 1265.704204 | L27: 509.1710351 | M27: 803.9340501 | N27: 621 | O27: 621 | P27: 787.295249
A28: 8 | B28: 102.188556 | C28: 1.001677272 | D28: 0.8429987639 | E28: 1.062496973 | F28: 198.0290366 | G28: 48.69151005 | H28: 48794.27849 | I28: 47753.83585 | J28: 951.0767169 | K28: 851.0767169 | L28: 514.0023869 | M28: 869.910463 | N28: 1030 | O28: 1030 | P28: 1169.211252
A29: 9 | B29: 120.0313489 | C29: 0.9327504077 | D29: 1.226677169 | E29: 0.9995826031 | F29: 191.1996143 | G29: 51.34232977 | H29: 68893.62625 | I29: 69151.72368 | J29: 1379.034474 | K29: 1279.034474 | L29: 515.222189 | M29: 935.8868759 | N29: 1380 | O29: 1380 | P29: 1479.657584
A30: 10 | B30: 105.3155142 | C30: 1.007942774 | D30: 1.177091817 | E30: 1.030951576 | F30: 188.321135 | G30: 48.44856785 | H30: 64124.76607 | I30: 65702.73207 | J30: 1310.054641 | K30: 1210.054641 | L30: 517.5886777 | M30: 1001.863289 | N30: 1546 | O30: 1546 | P30: 1595.667303
A31: 11 | B31: 86.97781315 | C31: 1.010965578 | D31: 1.152982417 | E31: 0.9700894497 | F31: 196.2520623 | G31: 48.53808499 | H31: 58753.94004 | I31: 57692.32641 | J31: 1149.846528 | K31: 1049.846528 | L31: 526.047835 | M31: 1067.839702 | N31: 1565 | O31: 1565 | P31: 1466.345633
A32: 12 | B32: 100.1209679 | C32: 0.990620177 | D32: 1.195008645 | E32: 0.908355871 | F32: 186.3413323 | G32: 50.40254897 | H32: 59896.97948 | I32: 57719.49838 | J32: 1150.389968 | K32: 1050.389968 | L32: 538.417148 | M32: 1133.816115 | N32: 1270 | O32: 1270 | P32: 1148.267934
A33: 13 | B33: 92.00316119 | C33: 1.008749815 | D33: 0.9959835204 | E33: 1.085345187 | F33: 188.8509291 | G33: 50.50984802 | H33: 59477.01211 | I33: 60205.58958 | J33: 1200.111792 | K33: 1100.111792 | L33: 541.6248333 | M33: 1199.792528 | N33: 925 | O33: 925 | P33: 766.2368019
A34: 14 | B34: 85.41129442 | C34: 1.074610824 | D34: 0.8895305134 | E34: 1.053777593 | F34: 203.6371135 | G34: 45.83547007 | H34: 47375.26728 | I34: 47999.21645 | J34: 955.984329 | K34: 855.984329 | L34: 545.3099744 | M34: 1265.768941 | N34: 551 | O34: 551 | P34: 435.7081262
A35: 15 | B35: 76.12256675 | C35: 1.059065947 | D35: 0.8663182609 | E35: 1.004067037 | F35: 201.1264157 | G35: 48.26192427 | H35: 46072.17561 | I35: 44754.75383 | J35: 891.0950766 | K35: 791.0950766 | L35: 546.4744196 | M35: 1331.745354 | N35: 343 | O35: 343 | P35: 211.1257453
A36: 16 | B36: 109.247923 | C36: 0.9972886339 | D36: 0.7291822571 | E36: 1.010572857 | F36: 215.8730768 | G36: 49.61810321 | H36: 42185.0236 | I36: 41299.28413 | J36: 821.9856826 | K36: 721.9856826 | L36: 552.2518974 | M36: 1397.721766 | N36: 148 | O36: 148 | P36: 87.17653724
A37: 17 | B37: 92.34214497 | C37: 0.9806167744 | D37: 0.9428120405 | E37: 1.039884327 | F37: 197.7888225 | G37: 53.91650693 | H37: 57940.62736 | I37: 57654.34417 | J37: 1149.086883 | K37: 1049.086883 | L37: 555.230022 | M37: 1463.698179 | N37: 76 | O37: 76 | P37: 30.6740355
A38: 18 | B38: 86.94850982 | C38: 0.9439535362 | D38: 0.8560864866 | E38: 0.9647585913 | F38: 195.9428318 | G38: 50.1184754 | H38: 45703.12487 | I38: 44546.4723 | J38: 886.9294461 | K38: 786.9294461 | L38: 562.9737325 | M38: 1529.674592 | N38: 27 | O38: 27 | P38: 9.197188768
A39: 19 | B39: 103.4914655 | C39: 1.05377185 | D39: 0.9973482105 | E39: 1.040675416 | F39: 201.7862957 | G39: 50.72831876 | H39: 58385.75547 | I39: 56764.78523 | J39: 1131.295705 | K39: 1031.295705 | L39: 564.2921951 | M39: 1595.651005 | N39: 10 | O39: 10 | P39: 2.349915077
A40: 20 | B40: 91.43459871 | C40: 1.013589776 | D40: 0.9975736799 | E40: =NORMINV(RAND(),E$15, E$16) -> 1.068078668 | F40: 206.2040015 | G40: 47.46762538 | H40: 55181.51512 | I40: 56777.04152 | J40: 1131.54083 | K40: 1031.54083 | L40: 567.0762886 | N40: 3 | O40: 3
A41: 21 | B41: 102.5353345 | C41: 1.093257668 | D41: 0.9827689153 | E41: 1.067487093 | F41: 214.402891 | G41: 50.36311986 | H41: 58695.58796 | I41: 58433.94707 | J41: 1164.678941 | K41: 1064.678941 | L41: 569.1559101
A42: 22 | B42: 96.37473656 | C42: 1.030621309 | D42: 0.8984916877 | E42: 1.07351472 | F42: 210.9079658 | G42: 49.97299724 | H42: 53375.67604 | I42: 54846.11234 | J42: 1092.922247 | K42: 992.9222469 | L42: 569.6083275
A43: 23 | B43: 88.9802547 | C43: 0.9953397701 | D43: 0.7687806955 | E43: 1.052774134 | F43: 203.2967845 | G43: 47.16509495 | H43: 42553.68533 | I43: 41525.00697 | J43: 826.5001395 | K43: 726.5001395 | L43: 572.4993531
A44: 24 | B44: 85.33049484 | C44: 0.9532610656 | D44: 1.115946681 | E44: 1.078931821 | F44: 215.6335386 | G44: 52.5208997 | H44: 67724.56018 | I44: 68702.04228 | J44: 1370.040846 | K44: 1270.040846 | L44: 574.415965
A45: 25 | B45: 90.92347613 | C45: 1.009200762 | D45: 0.8399636239 | E45: 0.9730200842 | F45: 190.9300487 | G45: 49.34735236 | H45: 45050.70907 | I45: 44432.25332 | J45: 884.6450664 | K45: 784.6450664 | L45: 575.111007
A46: 26 | B46: 104.8281381 | C46: 1.06531536 | D46: 1.384622631 | E46: 1.051114151 | F46: 173.9334466 | G46: 47.1757766 | H46: 74101.74691 | I46: 76579.03162 | J46: 1527.580632 | K46: 1427.580632 | L46: 576.2151083
A47: 27 | B47: 98.26653431 | C47: 0.9900583381 | D47: 1.056545568 | E47: 1.055943067 | F47: 207.596434 | G47: 54.28029104 | H47: 66046.41784 | I47: 63802.31213 | J47: 1272.046243 | K47: 1172.046243 | L47: 578.9698797
A48: 28 | B48: 94.80455199 | C48: 0.975868311 | D48: 0.9978591314 | E48: 0.9714368081 | F48: 185.7163567 | G48: 45.05356008 | H48: 48026.91354 | I48: 47093.71612 | J48: 937.8743223 | K48: 837.8743223 | L48: 579.6389218
A49: 29 | B49: 106.9880445 | C49: 1.009448428 | D49: 0.7456185561 | E49: 0.9939169239 | F49: 200.7950246 | G49: 53.42270656 | H49: 45561.04367 | I49: 46517.06147 | J49: 926.3412294 | K49: 826.3412294 | L49: 581.2982684
A50: 30 | B50: 94.08736533 | C50: 0.9785862637 | D50: 0.8865495516 | E50: 0.9400004069 | F50: 197.9401626 | G50: 49.05356954 | H50: 45593.56259 | I50: 44915.65936 | J50: 894.3131872 | K50: 794.3131872 | L50: 581.7576748
A51: 31 | B51: 90.1823786 | C51: 0.9290903397 | D51: 0.5089313584 | E51: 0.9469640363 | F51: 192.3905466 | G51: 51.79203858 | H51: 29492.55914 | I51: 30658.55175 | J51: 609.1710351 | K51: 509.1710351 | L51: 582.9797719
A52: 32 | B52: 104.0136142 | C52: 1.025091392 | D52: 0.6544626192 | E52: 1.031311228 | F52: 195.3367006 | G52: 48.0258819 | H52: 37731.3146 | I52: 38112.43983 | J52: 758.2487967 | K52: 658.2487967 | L52: 587.3558383
A53: 33 | B53: 98.87127027 | C53: 0.9435776696 | D53: 0.9156730171 | E53: 1.093759864 | F53: 211.9472416 | G53: 50.61207501 | H53: 55623.01453 | I53: 54530.58315 | J53: 1086.611663 | K53: 986.6116629 | L53: 588.2001664
A54: 34 | B54: 101.1493127 | C54: 0.9639474247 | D54: 0.8064429404 | E54: 1.063316573 | F54: 207.4366467 | G54: 49.37995016 | H54: 47365.62303 | I54: 46346.14218 | J54: 922.9228437 | K54: 822.9228437 | L54: 589.7568104
A55: 35 | B55: 107.1510922 | C55: 1.039279686 | D55: 1.106990646 | E55: 0.9620429268 | F55: 205.1126142 | G55: 49.73538464 | H55: 58710.4607 | I55: 57249.36595 | J55: 1140.987319 | K55: 1040.987319 | L55: 590.6924999
A56: 36 | B56: 104.2600279 | C56: 1.012890726 | D56: 1.073352424 | E56: 0.96322842 | F56: 187.8291635 | G56: 46.00761984 | H56: 52612.94033 | I56: 53285.75311 | J56: 1061.715062 | K56: 961.7150621 | L56: 592.5602522
A57: 37 | B57: 97.78015874 | C57: 0.9588774683 | D57: 1.069819856 | E57: 0.9837880797 | F57: 189.8423274 | G57: 50.42042592 | H57: 57983.50998 | I57: 59600.08596 | J57: 1188.001719 | K57: 1088.001719 | L57: 593.356743
A58: 38 | B58: 89.31223333 | C58: 0.9349980391 | D58: 1.094318632 | E58: 1.08268825 | F58: 201.0665819 | G58: 51.06446258 | H58: 64966.77231 | I58: 64712.58903 | J58: 1290.251781 | K58: 1190.251781 | L58: 594.7991142
A59: 39 | B59: 112.4258799 | C59: 1.145187149 | D59: 1.168048253 | E59: 0.9977665398 | F59: 200.8363996 | G59: 54.19878593 | H59: 70344.26216 | I59: 69225.33736 | J59: 1380.506747 | K59: 1280.506747 | L59: 595.220477
A60: 40 | B60: 89.34744908 | C60: 1.107114392 | D60: 0.8073159191 | E60: =NORMINV(RAND(),E$15, E$16) -> 1.049139996 | F60: 200.2740606 | G60: 45.76724894 | H60: 43491.75588 | I60: 44775.96241 | J60: 891.5192483 | K60: 791.5192483 | L60: 595.2975758
A61: 41 | B61: 99.9444799 | C61: 0.995895934 | D61: 1.039684982 | E61: 0.9793180137 | F61: 186.9032351 | G61: 49.79271981 | H61: 55841.04938 | I61: 57067.23851 | J61: 1137.34477 | K61: 1037.34477 | L61: 596.5247299
A62: 42 | B62: 96.06972768 | C62: 1.020430284 | D62: 1.219350118 | E62: 0.9305703439 | F62: 192.6638806 | G62: 50.54086356 | H62: 62495.575 | I62: 61650.44324 | J62: 1229.008865 | K62: 1129.008865 | L62: 600.932393
A63: 43 | B63: 99.25104304 | C63: 1.029816067 | D63: 1.368725706 | E63: 0.9899091604 | F63: 194.2721123 | G63: 53.16916867 | H63: 77668.36689 | I63: 76355.72041 | J63: 1523.114408 | K63: 1423.114408 | L63: 601.7861262
A64: 44 | B64: 110.9704779 | C64: 1.003490196 | D64: 0.8522042904 | E64: 1.03721396 | F64: 196.8761295 | G64: 52.62252753 | H64: 52570.81344 | I64: 55326.09194 | J64: 1102.521839 | K64: 1002.521839 | L64: 601.9588862
A65: 45 | B65: 95.46332547 | C65: 1.013789572 | D65: 1.384504641 | E65: 0.9853930514 | F65: 201.3804811 | G65: 47.28300103 | H65: 69284.72814 | I65: 68467.59834 | J65: 1365.351967 | K65: 1265.351967 | L65: 604.3777142
A66: 46 | B66: 86.68394904 | C66: 0.9704981855 | D66: 0.9403106829 | E66: 0.9334678839 | F66: 202.5797255 | G66: 51.65751649 | H66: 49890.72772 | I66: 49082.23927 | J66: 977.6447854 | K66: 877.6447854 | L66: 604.4116617
A67: 47 | B67: 80.51927942 | C67: 1.022856605 | D67: 1.010182142 | E67: 1.044872777 | F67: 197.7616574 | G67: 52.74234769 | H67: 60211.77577 | I67: 62062.61595 | J67: 1237.252319 | K67: 1137.252319 | L67: 606.2742625
A68: 48 | B68: 84.04202708 | C68: 1.00758694 | D68: 0.8051206006 | E68: 1.0724178 | F68: 190.9573408 | G68: 55.05348212 | H68: 52387.4562 | I68: 51920.00703 | J68: 1034.400141 | K68: 934.4001407 | L68: 606.7623764
A69: 49 | B69: 104.3375446 | C69: 0.9491746503 | D69: 1.233108423 | E69: 0.948159867 | F69: 196.2394713 | G69: 43.91851534 | H69: 55894.51183 | I69: 56639.48338 | J69: 1128.789668 | K69: 1028.789668 | L69: 609.1143705
A70: 50 | B70: 100.4604631 | C70: 1.067470967 | D70: 0.9681522752 | E70: 1.000641227 | F70: 185.5504457 | G70: 49.39453245 | H70: 53334.6457 | I70: 53694.13167 | J70: 1069.882633 | K70: 969.8826333 | L70: 610.0767751
A71: 51 | B71: 88.95360199 | C71: 1.043765589 | D71: 1.184795491 | E71: 0.9854652865 | F71: 202.5567244 | G71: 48.04434459 | H71: 60758.68338 | I71: 59141.96058 | J71: 1178.839212 | K71: 1078.839212 | L71: 610.6441531
A72: 52 | B72: 91.57157755 | C72: 0.9204914095 | D72: 1.026794709 | E72: 0.9750601901 | F72: 182.0510803 | G72: 55.40012855 | H72: 60317.64383 | I72: 58961.62419 | J72: 1175.232484 | K72: 1075.232484 | L72: 612.3108053
A73: 53 | B73: 94.10789373 | C73: 0.9741968984 | D73: 1.104275403 | E73: 1.079305554 | F73: 193.1411489 | G73: 46.89421869 | H73: 60383.28675 | I73: 59824.15621 | J73: 1192.483124 | K73: 1092.483124 | L73: 612.8447188
A74: 54 | B74: 96.43740802 | C74: 1.040785748 | D74: 0.4164570362 | E74: 1.040903052 | F74: 192.1800637 | G74: 48.73722401 | H74: 26211.13583 | I74: 26708.0738 | J74: 530.1614761 | K74: 430.1614761 | L74: 612.8779092
A75: 55 | B75: 107.5188528 | C75: 0.9897979403 | D75: 1.02956717 | E75: 0.9946414381 | F75: 203.5241923 | G75: 47.99915537 | H75: 54465.23062 | I75: 54490.58201 | J75: 1085.81164 | K75: 985.8116403 | L75: 613.0114098
A76: 56 | B76: 112.6678695 | C76: 1.002903663 | D76: 1.191550631 | E76: 1.011953621 | F76: 180.5061357 | G76: 44.58407601 | H76: 58977.49495 | I76: 58083.10507 | J76: 1157.662101 | K76: 1057.662101 | L76: 613.5785639
A77: 57 | B77: 96.19647945 | C77: 0.8943912021 | D77: 0.9200688502 | E77: 0.9968169656 | F77: 198.7306888 | G77: 53.70610931 | H77: 54075.49247 | I77: 53664.04837 | J77: 1069.280967 | K77: 969.2809673 | L77: 614.1914578
A78: 58 | B78: 102.8385693 | C78: 1.010207094 | D78: 1.07308565 | E78: 0.9469384108 | F78: 216.0952122 | G78: 48.20424769 | H78: 54206.5047 | I78: 55217.15407 | J78: 1100.343081 | K78: 1000.343081 | L78: 614.8231112
A79: 59 | B79: 101.9519777 | C79: 1.130536608 | D79: 0.8584899809 | E79: 1.019489653 | F79: 202.4552035 | G79: 50.0322565 | H79: 49758.5095 | I79: 49748.03183 | J79: 990.9606366 | K79: 890.9606366 | L79: 616.4363919
A80: 60 | B80: 82.22934766 | C80: 1.052280691 | D80: 0.9838899185 | E80: =NORMINV(RAND(),E$15, E$16) -> 1.027559207 | F80: 186.1549696 | G80: 50.46895047 | H80: 55577.51876 | I80: 54800.39903 | J80: 1092.007981 | K80: 992.0079805 | L80: 616.7193544
A81: 61 | B81: 79.09341645 | C81: 0.9711133092 | D81: 1.028289328 | E81: 0.9702424112 | F81: 197.0524811 | G81: 47.64388777 | H81: 51390.34255 | I81: 52905.05577 | J81: 1054.101115 | K81: 954.1011154 | L81: 617.1605439
A82: 62 | B82: 104.4407486 | C82: 0.9325816792 | D82: 0.799712695 | E82: 0.9675330606 | F82: 192.349176 | G82: 49.04330126 | H82: 42916.32299 | I82: 43176.66738 | J82: 859.5333476 | K82: 759.5333476 | L82: 617.8913957
A83: 63 | B83: 87.53443763 | C83: 1.015962454 | D83: 0.8227368239 | E83: 0.9148864637 | F83: 202.8340776 | G83: 52.55278642 | H83: 44433.49185 | I83: 43215.73799 | J83: 860.3147598 | K83: 760.3147598 | L83: 617.9957482
A84: 64 | B84: =NORMINV(RAND(),B$15, B$16) -> 104.9440878 | C84: 0.8981139552 | D84: 1.090519556 | E84: 1.039995272 | F84: 195.239254 | G84: 48.86597844 | H84: 60221.56859 | I84: 59249.78981 | J84: 1180.995796 | K84: 1080.995796 | L84: 618.0499451
A85: 65 | B85: 123.6060798 | C85: 0.9532496893 | D85: 0.8265110655 | E85: 1.038310797 | F85: 180.7263685 | G85: 55.07022748 | H85: =$B$3*D85*E85*G85 + B85*C85*G85+F85 -> 53929.42373 | I85: 54038.75826 | J85: =(I85-$F$15)/($E$15*$G$15) -> 1076.775165 | K85: =J85-$D$15*$B$15/$C$15 -> 976.7751653 | L85: 618.7235037
A86: =1+A85 -> 66 | B86: 117.6630774 | C86: 0.9687215283 | D86: 1.126413132 | E86: 0.9915037867 | F86: 207.0594687 | G86: 50.80795943 | H86: 62742.79877 | I86: =H86*NORMINV(RAND(),I$15, I$16) -> 61839.3152 | J86: 1232.786304 | K86: 1132.786304 | L86: 619.0481027
A87: 67 | B87: 106.1191306 | C87: 0.9968655937 | D87: 1.073686422 | E87: 0.9615060705 | F87: 193.9562592 | G87: 50.13820412 | H87: 57258.37837 | I87: 55283.0487 | J87: 1101.660974 | K87: 1001.660974 | L87: 619.6856951
A88: 68 | B88: 81.20002682 | C88: 1.002041997 | D88: 0.9784821052 | E88: 0.9414492088 | F88: 211.2568095 | G88: 48.77721142 | H88: 49113.19355 | I88: 49233.3372 | J88: 980.666744 | K88: 880.666744 | L88: 620.9498768
A89: 69 | B89: 94.75014309 | C89: 1.044516298 | D89: 1.036740473 | E89: 1.085798919 | F89: 198.9228991 | G89: 48.67838539 | H89: 59813.38234 | I89: 57757.61317 | J89: 1151.152263 | K89: 1051.152263 | L89: 621.7669222
A90: 70 | B90: 109.7830719 | C90: 1.043407291 | D90: 0.9690067997 | E90: 1.001533565 | F90: 204.6592205 | G90: 46.3462376 | H90: 50492.24074 | I90: 50233.06414 | J90: 1000.661283 | K90: 900.6612827 | L90: 623.0720504
A91: 71 | B91: 87.86639989 | C91: 0.970467433 | D91: 1.041905545 | E91: 0.961151947 | F91: 204.0940663 | G91: 48.0549782 | H91: 52425.48801 | I91: 51373.91079 | J91: 1023.478216 | K91: 923.4782159 | L91: 624.8692207
A92: 72 | B92: 112.772616 | C92: 0.9501574989 | D92: 1.118229045 | E92: 0.9910426973 | F92: 216.650923 | G92: 48.86423547 | H92: 59604.50688 | I92: 60101.1161 | J92: 1198.022322 | K92: 1098.022322 | L92: 625.1396505
A93: 73 | B93: 88.42383203 | C93: 1.072700248 | D93: 1.021273064 | E93: 0.9637122498 | F93: 216.6611983 | G93: 52.6130549 | H93: 56989.60038 | I93: 58111.50684 | J93: 1158.230137 | K93: 1058.230137 | L93: 625.9109106
A94: 74 | B94: 115.6973252 | C94: 0.9771762499 | D94: 1.019905682 | E94: 1.043549125 | F94: 174.8586067 | G94: 45.33909352 | H94: 53556.12621 | I94: 53310.52148 | J94: 1062.21043 | K94: 962.2104296 | L94: 626.2965315
A95: 75 | B95: 103.222354 | C95: 0.9887791997 | D95: 0.9767037925 | E95: 1.019893356 | F95: 206.1868252 | G95: 50.93989468 | H95: 56148.26837 | I95: 56906.34689 | J95: 1134.126938 | K95: 1034.126938 | L95: 626.5087731
A96: 76 | B96: 87.32124769 | C96: 0.9813527467 | D96: 1.065513763 | E96: 0.91537689 | F96: 204.7362813 | G96: 47.99480112 | H96: 51129.12185 | I96: 50143.28681 | J96: 998.8657363 | K96: 898.8657363 | L96: 626.7290907
A97: 77 | B97: 89.01374092 | C97: 0.9591420423 | D97: 0.9519732106 | E97: 1.028274179 | F97: 186.6972268 | G97: 48.74352585 | H97: 52062.78878 | I97: 51885.70336 | J97: 1033.714067 | K97: 933.7140672 | L97: 626.9680754
A98: 78 | B98: 97.19113607 | C98: 0.9091184777 | D98: 0.8515689849 | E98: 1.072540273 | F98: 182.0594116 | G98: 53.01440331 | H98: 53286.60256 | I98: 51821.67548 | J98: 1032.43351 | K98: 932.4335096 | L98: 628.0275265
A99: 79 | B99: 100.1638913 | C99: 0.8977711786 | D99: 1.04396343 | E99: 0.9971182522 | F99: 206.0086738 | G99: 49.86268206 | H99: 56594.68092 | I99: 54006.76479 | J99: 1076.135296 | K99: 976.1352959 | L99: 628.6907589
A100: 80 | B100: 112.4881372 | C100: 0.9810573328 | D100: 0.7964565847 | E100: =NORMINV(RAND(),E$15, E$16) -> 0.9853233505 | F100: 197.5062791 | G100: 48.40941436 | H100: 43529.96309 | I100: 43057.16856 | J100: 857.1433711 | K100: 757.1433711 | L100: 628.7237309
A101: 81 | B101: 93.2620485 | C101: 0.9850908933 | D101: 1.01849811 | E101: 0.9930465238 | F101: 201.3412331 | G101: 49.22568761 | H101: 54511.43211 | I101: 54862.95575 | J101: 1093.259115 | K101: 993.2591149 | L101: 629.2724923
A102: 82 | B102: 106.4086674 | C102: 0.8994347389 | D102: 1.037683697 | E102: 0.9687676639 | F102: 194.6031088 | G102: 47.16946313 | H102: 52127.33593 | I102: 52375.01696 | J102: 1043.500339 | K102: 943.5003391 | L102: 630.5616732
A103: 83 | B103: 118.951807 | C103: 0.9493807345 | D103: 1.008089151 | E103: 1.018653254 | F103: 200.1640258 | G103: 43.83315637 | H103: 50162.24099 | I103: 50194.51119 | J103: 999.8902237 | K103: 899.8902237 | L103: 630.8488231
A104: 84 | B104: 83.75189684 | C104: 0.9634873236 | D104: 0.8866371874 | E104: 1.166139856 | F104: 211.8826652 | G104: 51.73872815 | H104: 57881.7758 | I104: 58112.51795 | J104: 1158.250359 | K104: 1058.250359 | L104: 631.7105462
A105: 85 | B105: 106.2955321 | C105: 1.014073507 | D105: 0.6762154127 | E105: 1.0419913 | F105: 209.5324485 | G105: 54.33857963 | H105: 44354.30647 | I105: 43019.10334 | J105: 856.3820668 | K105: 756.3820668 | L105: 632.158703
A106: 86 | B106: 108.3236752 | C106: 1.021693848 | D106: 0.9183357299 | E106: 1.005000324 | F106: 202.8217798 | G106: 56.68123776 | H106: 58788.625 | I106: 58704.03172 | J106: 1170.080634 | K106: 1070.080634 | L106: 632.2982994
A107: 87 | B107: 117.3028918 | C107: 1.028953771 | D107: 0.7913722462 | E107: 1.035297227 | F107: 213.8364735 | G107: 49.1990205 | H107: 46461.14919 | I107: 46676.86657 | J107: 929.5373314 | K107: 829.5373314 | L107: 633.355273
A108: 88 | B108: 94.96379769 | C108: 0.9425444579 | D108: 0.6970836641 | E108: 1.067175777 | F108: 202.1809231 | G108: 47.7743538 | H108: 40018.20651 | I108: 40092.08824 | J108: 797.8417647 | K108: 697.8417647 | L108: 633.9188897
A109: 89 | B109: 96.32255181 | C109: 1.083339274 | D109: 0.8853280372 | E109: 1.093463312 | F109: 186.2379108 | G109: 46.51213715 | H109: 50066.95758 | I109: 50587.05383 | J109: 1007.741077 | K109: 907.7410765 | L109: 634.0474929
A110: 90 | B110: 98.96480694 | C110: 0.958259866 | D110: 1.170365625 | E110: 0.9720710538 | F110: 195.0340151 | G110: 52.04705022 | H110: 64343.67656 | I110: 64055.84921 | J110: 1277.116984 | K110: 1177.116984 | L110: 634.0865721
A111: 91 | B111: 92.77914476 | C111: 0.9374615257 | D111: 1.050780709 | E111: 0.988129144 | F111: 214.4013166 | G111: 51.51245841 | H111: 58180.54252 | I111: 60080.99834 | J111: 1197.619967 | K111: 1097.619967 | L111: 634.7165955
A112: 92 | B112: 108.9062011 | C112: 1.016507301 | D112: 0.9960882825 | E112: 0.8595560362 | F112: 206.9750127 | G112: 49.81959522 | H112: 48377.42428 | I112: 48993.06963 | J112: 975.8613926 | K112: 875.8613926 | L112: 636.6384943
A113: 93 | B113: 119.9416014 | C113: 1.037953046 | D113: 1.295211258 | E113: 1.002155918 | F113: 215.6551472 | G113: 48.57906148 | H113: 69319.24273 | I113: 69878.96872 | J113: 1393.579374 | K113: 1293.579374 | L113: 637.3899857
A114: 94 | B114: 94.83736626 | C114: 1.026990001 | D114: 0.7568819648 | E114: 0.9843577702 | F114: 204.8500425 | G114: 50.85078402 | H114: 43043.56776 | I114: 42239.57836 | J114: 840.7915671 | K114: 740.7915671 | L114: 638.4801403
A115: 95 | B115: 99.3906546 | C115: 0.9800303988 | D115: 1.256181198 | E115: 1.064199858 | F115: 193.2890943 | G115: 48.04044879 | H115: 69094.5204 | I115: 67172.04851 | J115: 1339.44097 | K115: 1239.44097 | L115: 639.0773093
A116: 96 | B116: 104.1586498 | C116: 1.031803834 | D116: 0.8665647081 | E116: 1.031145493 | F116: 195.2661114 | G116: 49.29632595 | H116: 49542.14975 | I116: 48028.38086 | J116: 956.5676172 | K116: 856.5676172 | L116: 639.3043748
A117: 97 | B117: 99.18284036 | C117: 0.9469287266 | D117: 0.7993919446 | E117: 0.9795816596 | F117: 186.8820718 | G117: 46.10289278 | H117: 40618.60124 | I117: 41077.9671 | J117: 817.5593419 | K117: 717.5593419 | L117: 639.3773552
A118: 98 | B118: 120.6000797 | C118: 1.025142571 | D118: 1.112741321 | E118: 0.9689600624 | F118: 207.0996194 | G118: 50.45101661 | H118: 60840.85558 | I118: 57659.84091 | J118: 1149.196818 | K118: 1049.196818 | L118: 639.5618754
A119: 99 | B119: 103.2249564 | C119: 0.9887657483 | D119: 1.113671715 | E119: 0.9366069857 | F119: 204.2955102 | G119: 52.81276526 | H119: 60682.2004 | I119: 62479.58478 | J119: 1245.591696 | K119: 1145.591696 | L119: 641.3015825
A120: 100 | B120: 102.4346186 | C120: 0.9727468869 | D120: 0.9591492725 | E120: =NORMINV(RAND(),E$15, E$16) -> 1.036909929 | F120: 191.840367 | G120: 45.65718213 | H120: 50149.67157 | I120: 49136.27051 | J120: 978.7254103 | K120: 878.7254103 | L120: 641.3479402
A121: 101 | B121: 87.63656322 | C121: 0.9868348199 | D121: 0.713373247 | E121: 1.062625327 | F121: 206.958648 | G121: 48.70547039 | H121: 41340.25249 | I121: 41346.82422 | J121: 822.9364843 | K121: 722.9364843 | L121: 641.4186004
A122: 102 | B122: 97.09596034 | C122: 0.9783216886 | D122: 0.7995276507 | E122: 0.9757019196 | F122: 200.1644793 | G122: 54.06669912 | H122: 47513.48669 | I122: 47572.50823 | J122: 947.4501646 | K122: 847.4501646 | L122: 642.688361
A123: 103 | B123: 98.7584729 | C123: 0.9988837328 | D123: 0.9455369164 | E123: 0.9628690733 | F123: 199.378836 | G123: 47.98180168 | H123: 48616.68669 | I123: 47111.82917 | J123: 938.2365834 | K123: 838.2365834 | L123: 642.7796879
A124: 104 | B124: 82.01340176 | C124: 0.9675043086 | D124: 1.014234586 | E124: 0.9510409859 | F124: 188.2945606 | G124: 51.10770595 | H124: 53541.00772 | I124: 51948.89066 | J124: 1034.977813 | K124: 934.9778132 | L124: 643.4067009
A125: 105 | B125: 98.88046089 | C125: 1.036244416 | D125: 1.018274991 | E125: 0.9714471766 | F125: 201.0099346 | G125: 51.03395118 | H125: 55912.97244 | I125: 55795.51102 | J125: 1111.91022 | K125: 1011.91022 | L125: 643.4248969
A126: 106 | B126: 99.94712184 | C126: 0.9953933728 | D126: 0.9061113883 | E126: 1.009278814 | F126: 208.5006444 | G126: 44.19630903 | H126: 45023.81123 | I126: 45400.48356 | J126: 904.0096712 | K126: 804.0096712 | L126: 643.6997752
A127: 107 | B127: 93.61667058 | C127: 1.080071568 | D127: 0.8999884582 | E127: 0.9505782654 | F127: 193.777218 | G127: 50.12648293 | H127: 48145.88218 | I127: 47937.20939 | J127: 954.7441879 | K127: 854.7441879 | L127: 643.7309896
A128: 108 | B128: 87.98195162 | C128: 1.045793007 | D128: 0.9347870052 | E128: 0.9705547384 | F128: 196.2979819 | G128: 49.66741357 | H128: 49827.59673 | I128: 49275.655 | J128: 981.5130999 | K128: 881.5130999 | L128: 643.8300267
A129: 109 | B129: 105.2844079 | C129: 1.045827271 | D129: 0.9763434299 | E129: 0.9576015561 | F129: 187.1668778 | G129: 50.13511413 | H129: 52581.23352 | I129: 50624.05691 | J129: 1008.481138 | K129: 908.4811382 | L129: 643.9136063
A130: 110 | B130: 105.3163338 | C130: 0.9223335379 | D130: 1.164591747 | E130: 1.003155228 | F130: 195.6915266 | G130: 50.33083768 | H130: 63884.48881 | I130: 64542.2492 | J130: 1286.844984 | K130: 1186.844984 | L130: 644.0901939
A131: 111 | B131: 94.99127256 | C131: 0.9188582805 | D131: 0.8671222739 | E131: 0.9750616865 | F131: 204.9085481 | G131: 46.27986207 | H131: 43373.89494 | I131: 44013.39804 | J131: 876.2679609 | K131: 776.2679609 | L131: 644.45513
A132: 112 | B132: 101.4185457 | C132: 0.9062600918 | D132: 0.7644050111 | E132: 1.071034489 | F132: 207.7767229 | G132: 49.94771255 | H132: 45690.9485 | I132: 45825.10273 | J132: 912.5020547 | K132: 812.5020547 | L132: 645.3529305
A133: 113 | B133: 113.071229 | C133: 1.067436854 | D133: 1.028778205 | E133: 1.079505216 | F133: 204.8989559 | G133: 52.3366716 | H133: 64645.3593 | I133: 64362.96583 | J133: 1283.259317 | K133: 1183.259317 | L133: 645.5959894
A134: 114 | B134: 103.0342943 | C134: 1.088172186 | D134: 0.7213683871 | E134: 1.041741647 | F134: 175.5132925 | G134: 45.92801328 | H134: 39838.87875 | I134: 40631.56913 | J134: 808.6313825 | K134: 708.6313825 | L134: 646.4825799
A135: 115 | B135: 101.2489726 | C135: 0.9386720798 | D135: 1.05210342 | E135: 0.9327640505 | F135: 188.7694099 | G135: 49.03268517 | H135: 52967.73959 | I135: 51808.23004 | J135: 1032.164601 | K135: 932.1646008 | L135: 647.566041
A136: 116 | B136: 102.3672625 | C136: 1.005926563 | D136: 0.8811237006 | E136: 0.9624205645 | F136: 196.5609876 | G136: 48.91367596 | H136: 46712.75845 | I136: 44946.52872 | J136: 894.9305745 | K136: 794.9305745 | L136: 648.2454687
A137: 117 | B137: 108.3993042 | C137: 1.036255805 | D137: 1.169143085 | E137: 1.012108654 | F137: 205.8027584 | G137: 51.2054892 | H137: 66549.13192 | I137: 65758.85617 | J137: 1311.177123 | K137: 1211.177123 | L137: 649.4316421
A138: 118 | B138: 104.9687374 | C138: 0.9866574394 | D138: 1.103663233 | E138: 0.9518807847 | F138: 178.4781078 | G138: 53.58009561 | H138: 62016.55291 | I138: 64413.75897 | J138: 1284.275179 | K138: 1184.275179 | L138: 649.9504211
A139: 119 | B139: 74.71966759 | C139: 0.9833431319 | D139: 0.8418634119 | E139: 1.009768374 | F139: 210.9372098 | G139: 49.74040678 | H139: 46149.29279 | I139: 46633.00688 | J139: 928.6601376 | K139: 828.6601376 | L139: 650.2648883
A140: 120 | B140: 94.68503462 | C140: 0.9911046466 | D140: 0.8360237025 | E140: =NORMINV(RAND(),E$15, E$16) -> 1.05958934 | F140: 192.2629522 | G140: 51.04536714 | H140: 50200.62208 | I140: 49822.33772 | J140: 992.4467544 | K140: 892.4467544 | L140: 651.0096322
A141: 121 | B141: 90.55762818 | C141: 0.9819259171 | D141: 1.263834916 | E141: 0.9965756028 | F141: 214.1168434 | G141: 51.33068137 | H141: 69429.84103 | I141: 69081.11716 | J141: 1377.622343 | K141: 1277.622343 | L141: 651.2270555
A142: 122 | B142: 117.4758711 | C142: 1.012246429 | D142: 0.9060369905 | E142: 0.9176199319 | F142: 210.3712888 | G142: 48.65573211 | H142: 46448.50383 | I142: 45370.77343 | J142: 903.4154686 | K142: 803.4154686 | L142: 651.3602073
A143: 123 | B143: 92.09853046 | C143: 0.9589286329 | D143: 1.052273037 | E143: 0.961802123 | F143: 176.8670034 | G143: 50.03947615 | H143: 55240.02428 | I143: 55616.72684 | J143: 1108.334537 | K143: 1008.334537 | L143: 651.3748184
A144: 124 | B144: 86.93113422 | C144: 1.046435781 | D144: 0.9219241388 | E144: 1.081472356 | F144: 194.1866458 | G144: 51.32354104 | H144: 56034.36968 | I144: 57717.17352 | J144: 1150.34347 | K144: 1050.34347 | L144: 651.6583265
A145: 125 | B145: 101.3385607 | C145: 1.031742098 | D145: 0.7849767424 | E145: 0.9637990159 | F145: 192.2900517 | G145: 42.7977584 | H145: 37046.08482 | I145: 37165.21874 | J145: 739.3043748 | K145: 639.3043748 | L145: 652.7024272
A146: 126 | B146: 110.322852 | C146: 0.9499360923 | D146: 0.764505502 | E146: 0.8726982165 | F146: 205.9240239 | G146: 47.84165251 | H146: 37138.83043 | I146: 36495.54553 | J146: 725.9109106 | K146: 625.9109106 | L146: 652.7691693
A147: 127 | B147: 96.2867099 | C147: 1.018439042 | D147: 1.126587478 | E147: 0.9850174006 | F147: 204.0469668 | G147: 47.8653526 | H147: 58014.40369 | I147: 58470.83857 | J147: 1165.416771 | K147: 1065.416771 | L147: 653.1882203
A148: 128 | B148: =NORMINV(RAND(),B$15, B$16) -> 121.2067393 | C148: 0.9965492182 | D148: 0.8290813742 | E148: 1.036229754 | F148: 201.0220753 | G148: 48.64714921 | H148: 47870.71724 | I148: 46663.39988 | J148: 929.2679976 | K148: 829.2679976 | L148: 653.4875742
A149: 129 | B149: 99.15991575 | C149: 0.9861034972 | D149: 1.037764493 | E149: 1.058506959 | F149: 201.9606455 | G149: 50.75373703 | H149: =$B$3*D149*E149*G149 + B149*C149*G149+F149 -> 60916.77212 | I149: 61095.80938 | J149: =(I149-$F$15)/($E$15*$G$15) -> 1217.916188 | K149: =J149-$D$15*$B$15/$C$15 -> 1117.916188 | L149: 653.5405333
A150: =1+A149 -> 130 | B150: 95.97784346 | C150: 0.9958279723 | D150: 1.111164198 | E150: 1.09286667 | F150: 210.484009 | G150: 50.72859557 | H150: 66661.48139 | I150: =H150*NORMINV(RAND(),I$15, I$16) -> 66664.4087 | J150: 1329.288174 | K150: 1229.288174 | L150: 654.4150061
A151: 131 | B151: 92.98430931 | C151: 0.9566667818 | D151: 0.7664906618 | E151: 0.9989525605 | F151: 195.6912185 | G151: 49.27449151 | H151: 42307.78107 | I151: 41727.76202 | J151: 830.5552404 | K151: 730.5552404 | L151: 654.5124185
A152: 132 | B152: 102.5025658 | C152: 0.9398432049 | D152: 1.167726923 | E152: 1.023777112 | F152: 194.3144522 | G152: 47.66690194 | H152: 61771.77386 | I152: 64289.0527 | J152: 1281.781054 | K152: 1181.781054 | L152: 654.9688929
A153: 133 | B153: 87.13089452 | C153: 0.9621751285 | D153: 1.0323468 | E153: 0.9439555605 | F153: 210.7740448 | G153: 51.73014723 | H153: 54958.06564 | I153: 56002.75237 | J153: 1116.055047 | K153: 1016.055047 | L153: 656.0441221
A154: 134 | B154: 112.4801578 | C154: 0.9797029654 | D154: 0.9946055836 | E154: 1.030256775 | F154: 207.2605953 | G154: 53.74592388 | H154: 61203.30997 | I154: 62183.3763 | J154: 1239.667526 | K154: 1139.667526 | L154: 656.2507234
A155: 135 | B155: 89.8081529 | C155: 0.952550386 | D155: 1.026625075 | E155: 0.964164348 | F155: 197.5943847 | G155: 50.93812434 | H155: 54975.54082 | I155: 54282.77348 | J155: 1081.65547 | K155: 981.6554696 | L155: 656.5805384
A156: 136 | B156: 104.7733354 | C156: 0.9133822408 | D156: 1.136887814 | E156: 1.05419446 | F156: 203.2713358 | G156: 45.17211851 | H156: 58664.97918 | I156: 59388.74508 | J156: 1183.774902 | K156: 1083.774902 | L156: 657.0579443
A157: 137 | B157: 94.39477932 | C157: 0.9906743442 | D157: 0.9655462246 | E157: 0.9343707298 | F157: 200.6259958 | G157: 47.19820752 | H157: 47195.53274 | I157: 46420.64412 | J157: 924.4128823 | K157: 824.4128823 | L157: 658.2487967
A158: 138 | B158: 85.48306981 | C158: 0.9706100787 | D158: 1.203041278 | E158: 1.03677236 | F158: 193.9169377 | G158: 47.26200349 | H158: 63064.22893 | I158: 60344.34544 | J158: 1202.886909 | K158: 1102.886909 | L158: 659.1688887
A159: 139 | B159: 107.9011774 | C159: 1.009962589 | D159: 1.033767802 | E159: 0.968247841 | F159: 211.9390495 | G159: 50.32694294 | H159: 56070.79917 | I159: 55643.18442 | J159: 1108.863688 | K159: 1008.863688 | L159: 659.4008792
A160: 140 | B160: 100.8529709 | C160: 1.015512045 | D160: 1.111941817 | E160: =NORMINV(RAND(),E$15, E$16) -> 0.9223987727 | F160: 204.6331085 | G160: 48.45259044 | H160: 54862.60369 | I160: 52201.09655 | J160: 1040.021931 | K160: 940.0219311 | L160: 660.1680398
A161: 141 | B161: 84.73904592 | C161: 1.059195676 | D161: 1.228393273 | E161: 1.105853533 | F161: 205.3426423 | G161: 49.7341323 | H161: 72229.2324 | I161: 68837.05789 | J161: 1372.741158 | K161: 1272.741158 | L161: 660.9136877
A162: 142 | B162: 106.101994 | C162: 0.9069151295 | D162: 1.048835725 | E162: 0.9524548509 | F162: 194.9720574 | G162: 50.36489589 | H162: 55354.3128 | I162: 53450.85788 | J162: 1065.017158 | K162: 965.0171577 | L162: 661.0659333
A163: 143 | B163: 82.55738988 | C163: 0.9587291355 | D163: 0.9894282467 | E163: 1.046971332 | F163: 191.8907996 | G163: 51.84171594 | H163: 57998.16124 | I163: 57512.6832 | J163: 1146.253664 | K163: 1046.253664 | L163: 661.0948907
A164: 144 | B164: 108.596884 | C164: 1.008398627 | D164: 1.08813176 | E164: 0.9550109191 | F164: 203.5346623 | G164: 52.05108543 | H164: 59993.92218 | I164: 59015.94658 | J164: 1176.318932 | K164: 1076.318932 | L164: 661.3978769
A165: 145 | B165: 102.3586576 | C165: 1.015139084 | D165: 1.193661907 | E165: 0.9489447051 | F165: 203.7068214 | G165: 49.04639921 | H165: 60855.82895 | I165: 61639.52831 | J165: 1228.790566 | K165: 1128.790566 | L165: 661.6049121
A166: 146 | B166: 97.85144546 | C166: 0.9803431947 | D166: 0.9456919068 | E166: 0.9258941966 | F166: 193.7827932 | G166: 49.97967751 | H166: 48750.97106 | I166: 48657.02331 | J166: 969.1404663 | K166: 869.1404663 | L166: 662.509103
A167: 147 | B167: 92.68980419 | C167: 0.9306830807 | D167: 1.025943902 | E167: 1.037329419 | F167: 199.7570777 | G167: 51.7410445 | H167: 59728.17152 | I167: 58146.27634 | J167: 1158.925527 | K167: 1058.925527 | L167: 663.0144486
A168: 148 | B168: 92.70770225 | C168: 0.9867601768 | D168: 1.141888146 | E168: 1.037315361 | F168: 197.4419642 | G168: 50.47038517 | H168: 64596.56239 | I168: 65251.5852 | J168: 1301.031704 | K168: 1201.031704 | L168: 663.2072267
A169: 149 | B169: 95.01115499 | C169: 0.9525280343 | D169: 1.039023581 | E169: 0.9324694654 | F169: 197.8877895 | G169: 50.20589873 | H169: 53383.93596 | I169: 54141.30991 | J169: 1078.826198 | K169: 978.8261982 | L169: 663.5356522
A170: 150 | B170: 85.91706646 | C170: 0.9782704924 | D170: 0.7148974762 | E170: 0.9099680849 | F170: 218.9297536 | G170: 49.12822296 | H170: 36307.73719 | I170: 35850.57049 | J170: 713.0114098 | K170: 613.0114098 | L170: 663.8408779
A171: 151 | B171: 109.0570166 | C171: 1.0035125 | D171: 1.242141167 | E171: 1.008488208 | F171: 208.1843069 | G171: 50.72822374 | H171: 69306.35587 | I171: 68664.06401 | J171: 1369.28128 | K171: 1269.28128 | L171: 664.2372637
A172: 152 | B172: 77.57734251 | C172: 1.026635658 | D172: 1.055542014 | E172: 0.9971639785 | F172: 183.1338034 | G172: 50.41539631 | H172: 57263.04925 | I172: 58829.64083 | J172: 1172.592817 | K172: 1072.592817 | L172: 664.4685598
A173: 153 | B173: 121.1172125 | C173: 0.9696527032 | D173: 1.024759551 | E173: 1.073595988 | F173: 198.1469115 | G173: 49.75046749 | H173: 60775.28009 | I173: 61099.87917 | J173: 1217.997583 | K173: 1117.997583 | L173: 664.7980404
A174: 154 | B174: 95.51991827 | C174: 1.030538643 | D174: 1.221525326 | E174: 0.9842564106 | F174: 193.8052884 | G174: 49.75202819 | H174: 64907.81565 | I174: 66391.25769 | J174: 1323.825154 | K174: 1223.825154 | L174: 666.2337821
A175: 155 | B175: 111.7370555 | C175: 1.025689429 | D175: 1.000482715 | E175: 0.9671226113 | F175: 203.1526055 | G175: 49.37231934 | H175: 53633.7271 | I175: 53588.63126 | J175: 1067.772625 | K175: 967.7726251 | L175: 666.2808756
A176: 156 | B176: 100.9943681 | C176: 1.113865407 | D176: 0.7830407209 | E176: 1.046489512 | F176: 209.570267 | G176: 51.33633822 | H176: 48051.85641 | I176: 48436.86158 | J176: 964.7372316 | K176: 864.7372316 | L176: 666.3270722
A177: 157 | B177: 118.6380025 | C177: 0.9968033936 | D177: 1.109064029 | E177: 0.9743638107 | F177: 202.7311666 | G177: 47.65880179 | H177: 57340.42148 | I177: 56865.05333 | J177: 1133.301067 | K177: 1033.301067 | L177: 666.4081632
A178: 158 | B178: 98.52757562 | C178: 0.9657988886 | D178: 1.218850789 | E178: 1.023758706 | F178: 201.5059209 | G178: 50.52724205 | H178: 68057.92106 | I178: 68139.48684 | J178: 1358.789737 | K178: 1258.789737 | L178: 666.5622278
A179: 159 | B179: 93.84136812 | C179: 0.9773706479 | D179: 1.089073401 | E179: 0.9694733373 | F179: 210.5638553 | G179: 43.9812015 | H179: 50680.99035 | I179: 51125.66927 | J179: 1018.513385 | K179: 918.5133854 | L179: 666.6089503
A180: 160 | B180: 101.3457555 | C180: 1.060724188 | D180: 1.056130588 | E180: =NORMINV(RAND(),E$15, E$16) -> 1.012327135 | F180: 205.9841323 | G180: 52.33942683 | H180: 61791.14696 | I180: 61768.74862 | J180: 1231.374972 | K180: 1131.374972 | L180: 667.2289903
A181: 161 | B181: 91.79618344 | C181: 0.9865480493 | D181: 0.9471590856 | E181: 0.9639462082 | F181: 196.3688879 | G181: 46.35597761 | H181: 46717.91868 | I181: 46329.47566 | J181: 922.5895133 | K181: 822.5895133 | L181: 667.5071917
A182: 162 | B182: 104.6259691 | C182: 1.002509497 | D182: 0.9120159943 | E182: 1.004982896 | F182: 189.9284218 | G182: 48.24434276 | H182: 49469.0642 | I182: 47977.22375 | J182: 955.5444751 | K182: 855.5444751 | L182: 667.6300594
A183: 163 | B183: 106.142616 | C183: 1.053135774 | D183: 1.01784057 | E183: 1.02407248 | F183: 207.5449551 | G183: 50.53489096 | H183: 58531.13119 | I183: 58024.43245 | J183: 1156.488649 | K183: 1056.488649 | L183: 667.6516276
A184: 164 | B184: 100.0438012 | C184: 1.021405947 | D184: 1.137326471 | E184: 1.021007715 | F184: 182.6991845 | G184: 45.85462639 | H184: 58115.63751 | I184: 57501.96449 | J184: 1146.03929 | K184: 1046.03929 | L184: 667.9577414
A185: 165 | B185: 93.17577583 | C185: 0.9565428265 | D185: 0.7434503149 | E185: 1.014391072 | F185: 204.6860515 | G185: 52.70334402 | H185: 44648.15023 | I185: 42774.69819 | J185: 851.4939639 | K185: 751.4939639 | L185: 668.1810793
A186: 166 | B186: 111.4668861 | C186: 0.9743042117 | D186: 0.933798137 | E186: 1.022377521 | F186: 205.1293418 | G186: 49.62589549 | H186: 52972.18924 | I186: 53583.84147 | J186: 1067.676829 | K186: 967.6768295 | L186: 668.3232488
A187: 167 | B187: 98.49796352 | C187: 1.054797934 | D187: 1.008386985 | E187: 1.065428994 | F187: 204.8394051 | G187: 52.19042255 | H187: 61698.73605 | I187: 63355.05786 | J187: 1263.101157 | K187: 1163.101157 | L187: 668.4566946
A188: 168 | B188: 113.3178822 | C188: 1.070829461 | D188: 1.009956103 | E188: 1.018954825 | F188: 198.2515057 | G188: 47.15086727 | H188: 54442.67309 | I188: 55922.59318 | J188: 1114.451864 | K188: 1014.451864 | L188: 668.7289347
A189: 169 | B189: 75.96632188 | C189: 0.9938963325 | D189: 1.001014951 | E189: 1.003756316 | F189: 213.5301681 | G189: 50.13589563 | H189: 54374.2216 | I189: 54282.79223 | J189: 1081.655845 | K189: 981.6558446 | L189: 669.0598912
A190: 170 | B190: 95.28051688 | C190: 1.07960764 | D190: 0.8891246678 | E190: 1.119587204 | F190: 199.0660791 | G190: 50.96682841 | H190: 56176.86004 | I190: 56214.53328 | J190: 1120.290666 | K190: 1020.290666 | L190: 669.2747814
A191: 171 | B191: 98.75927844 | C191: 0.9212547836 | D191: 0.8317716657 | E191: 0.9720056304 | F191: 210.6428041 | G191: 47.67744956 | H191: 43095.04021 | I191: 43768.81159 | J191: 871.3762317 | K191: 771.3762317 | L191: 670.22436
A192: 172 | B192: 100.4153404 | C192: 1.028846843 | D192: 0.9392717207 | E192: 0.9825839476 | F192: 204.8961565 | G192: 49.59104429 | H192: 51096.48151 | I192: 50281.29431 | J192: 1001.625886 | K192: 901.6258861 | L192: 670.2383389
A193: 173 | B193: 94.52083942 | C193: 0.9949875847 | D193: 0.900866394 | E193: 1.052094564 | F193: 182.7582411 | G193: 51.33997929 | H193: 53670.99211 | I193: 52513.28599 | J193: 1046.26572 | K193: 946.2657197 | L193: 671.2272931
A194: 174 | B194: 97.215293 | C194: 1.056250104 | D194: 1.059321341 | E194: 0.9880652126 | F194: 210.521144 | G194: 47.6728727 | H194: 55003.92037 | I194: 56163.63148 | J194: 1119.27263 | K194: 1019.27263 | L194: 671.2568036
A195: 175 | B195: 84.66144652 | C195: 1.034961764 | D195: 1.11224588 | E195: 1.072798278 | F195: 216.5629088 | G195: 54.36202896 | H195: 69845.45144 | I195: 69187.39976 | J195: 1379.747995 | K195: 1279.747995 | L195: 671.4538839
A196: 176 | B196: 95.192753 | C196: 1.091780722 | D196: 0.920804105 | E196: 0.9576395879 | F196: 197.2890562 | G196: 54.01765414 | H196: 53444.00736 | I196: 54262.25916 | J196: 1081.245183 | K196: 981.2451831 | L196: 671.8959699
A197: 177 | B197: 100.530953 | C197: 1.037693435 | D197: 1.031746777 | E197: 1.060651396 | F197: 209.4624423 | G197: 51.10820464 | H197: 61470.00373 | I197: 61487.1129 | J197: 1225.742258 | K197: 1125.742258 | L197: 672.6712172
A198: 178 | B198: 92.49116393 | C198: 0.9976568563 | D198: 0.7679455713 | E198: 1.054421574 | F198: 199.8994231 | G198: 51.33780902 | H198: 46507.2614 | I198: 46284.08684 | J198: 921.6817369 | K198: 821.6817369 | L198: 672.7255189
A199: 179 | B199: 102.1104571 | C199: 0.9587387513 | D199: 0.8419722759 | E199: 0.9331831301 | F199: 208.274914 | G199: 49.69209706 | H199: 44116.78711 | I199: 43744.10704 | J199: 870.8821408 | K199: 770.8821408 | L199: 673.1515385
A200: 180 | B200: 76.9925322 | C200: 0.9800381741 | D200: 1.157307893 | E200: =NORMINV(RAND(),E$15, E$16) -> 1.007983186 | F200: 224.1683398 | G200: 46.22086255 | H200: 57630.59602 | I200: 59374.14908 | J200: 1183.482982 | K200: 1083.482982 | L200: 673.9415587
A201: 181 | B201: 107.3944411 | C201: 1.016623914 | D201: 1.002219595 | E201: 1.02189579 | F201: 190.0494253 | G201: 53.98689867 | H201: 61375.76313 | I201: 62000.56041 | J201: 1236.011208 | K201: 1136.011208 | L201: 674.0405206
A202: 182 | B202: 74.97597258 | C202: 1.008915703 | D202: 1.102311699 | E202: 0.997247102 | F202: 193.273465 | G202: 53.57192145 | H202: 63136.08022 | I202: 62816.02215 | J202: 1252.320443 | K202: 1152.320443 | L202: 674.28117
A203: 183 | B203: 102.2803715 | C203: 0.9636900575 | D203: 0.9795190325 | E203: 1.007545737 | F203: 197.1525878 | G203: 50.68163092 | H203: 55210.88727 | I203: 56257.70157 | J203: 1121.154031 | K203: 1021.154031 | L203: 674.9035911
... 4297 more rows
